[Event "10th Menchik Memorial 2025"]
[Site "London"]
[Date "2025.03.23"]
[Round "8.1"]
[White "Yao, Lan"]
[Black "Mirzoeva, Elmira"]
[Result "1/2-1/2"]
[Annotator "TA"]
[ECO "B19"]
[WhiteElo "2294"]
[BlackElo "2272"]
[PlyCount "124"]
[EventDate "2025.03.11"]
[EventType "tourn"]
[EventCountry "ENG"]
[SourceTitle "playchess.com"]
[Source "ChessBase"]
[SourceQuality "1"]
[TimeControl "5400+30"]

{[%evp 26,124,15,15,22,20,31,21,27,0,7,7,8,0,0,0,0,0,0,0,4,-21,-13,-15,-11,-21,0,-31,-12,-12,5,7,0,0,0,0,0,0,0,0,0,9,14,0,0,9,14,6,16,4,10,0,17,0,0,0,0,0,110,110,110,109,70,0,0,0,0,-8,-8,-46,-46,-39,-47,-112,-108,-114,-110,-114,-103,-110,-103,-113,-108,-279,-279,-300,-141,-340,-8,-354,-319,-354,0,0,0,0,8,8,8,8,8]} 1. e4 {[%emt 0:00:03]} c6 {[%emt 0:00:10]} 2. d4 {[%emt 0:00:03]} d5 {[%emt 0:00:08]} 3. Nd2 {[%emt 0:00:02]} dxe4 {[%emt 0:00:12]} 4. Nxe4 {[%emt 0:00:03]} Bf5 {[%emt 0:00:12]} 5. Ng3 {[%emt 0:00:04]} Bg6 {[%emt 0:00:09]} 6. h4 {[%emt 0:00:03]} h6 {[%emt 0:00:17]} 7. Nf3 {[%emt 0:00:03]} Nd7 {[%emt 0:00:20]} 8. h5 {[%emt 0:00:07]} Bh7 {[%emt 0:00:10]} 9. Bd3 {[%emt 0:00:05]} Bxd3 {[%emt 0:00:13]} 10. Qxd3 {[%emt 0:00:03]} e6 {[%emt 0:00:20]} 11. Bd2 {[%emt 0:00:06]} Ngf6 {[%emt 0:00:24]} 12. O-O-O {[%emt 0:00:06]} Be7 {[%emt 0:00:13]} 13. Kb1 {[%emt 0:00:04]} Qc7 {[%emt 0:00:30] 13...Qb6 is becoming the main line.} 14. Ne4 {[%emt 0:00:26]} O-O-O {[%emt 0:00:26] B19: Classical Caro-Kann: 4...Bf5 main line.} 15. g3 $1 {[%emt 0:18:55]} c5 {[%emt 0:04:11]} 16. Nxf6 {[%emt 0:06:19]} Bxf6 {[%emt 0:00:48]} 17. Qa3 {[%emt 0:02:21]} cxd4 {[%emt 0:30:10]} 18. Qxa7 {[%emt 0:02:27]} Qc5 {[%emt 0:06:41]} 19. Qa8+ {[%emt 0:03:52]} (19. Qxc5+ {simplifies} Nxc5 20. Ne1 e5 21. Nd3) 19... Kc7 {[%emt 0:04:26]} 20. Qa5+ {[%emt 0:00:18]} Qxa5 {[%emt 0:00:40]} 21. Bxa5+ {[%emt 0:00:02]} b6 {[%emt 0:00:06]} 22. Bb4 $146 {[%emt 0:00:06]} (22. Bd2 e5 23. Rhe1 Rhe8 24. Bb4 Nc5 25. Nd2 Rd5 26. g4 Bg5 27. f3 f6 28. Ne4 {0-1 Blazeka,M (2275)-Deviatkin,A (2508) Titled Tuesday intern op1 2nd Aug blitz 2016 (5)}) 22... Nb8 {[%emt 0:02:06]} 23. Ba3 {[%emt 0:07:34]} Nc6 {[%emt 0:00:29]} 24. b3 {[%emt 0:00:30]} Rd5 {[%emt 0:05:22]} 25. Bb2 {[%emt 0:01:06]} Rhd8 {[%emt 0:00:40]} 26. Nd2 {[%emt 0:00:24]} b5 {[%emt 0:05:58]} 27. f4 {[%emt 0:01:40]} Ra8 {[%emt 0:04:39]} 28. a3 {[%emt 0:02:19]} Be7 {[%emt 0:06:29]} 29. b4 $1 {[%emt 0:00:53]} f6 {[%emt 0:01:12]} 30. Ne4 {[%emt 0:01:56]} Rad8 {[%emt 0:02:56]} 31. Nf2 {[%emt 0:03:53]} e5 {[%emt 0:04:00]} 32. fxe5 {[%emt 0:04:03]} fxe5 {[%emt 0:01:19]} 33. Ne4 {[%emt 0:00:42]} R8d7 {[%emt 0:04:02]} 34. Rhf1 {[%emt 0:02:35]} Nd8 {[%emt 0:01:15]} 35. Rd3 {[%emt 0:01:59]} Ne6 {[%emt 0:01:23]} 36. Bc1 {[%emt 0:04:13]} Kc6 {[%emt 0:06:44]} 37. c3 {[%emt 0:04:59]} Rd8 {[%emt 0:01:27]} 38. Kc2 {[%emt 0:01:18]} R5d7 {[%emt 0:00:55]} 39. Kb3 {[%emt 0:01:29]} Kd5 {[%emt 0:01:11]} 40. Re1 {[%emt 0:00:52]} Rf8 {[%emt 0:01:04]} 41. Bb2 {[%emt 0:00:29] Black must now prevent cxd4.} Rf5 {[%emt 0:03:27]} (41... Rc7 $11 {remains equal.}) 42. cxd4 $16 {[%emt 0:00:31]} Nxd4+ {[%emt 0:00:03]} 43. Bxd4 {[%emt 0:00:20]} exd4 {[%emt 0:00:01]} 44. Nc3+ {[%emt 0:02:43]} (44. g4 $1 $14 Re5 (44... Rf4 45. Nc3+ Kc6 46. Re6+ Kb7 47. Nxb5 $14) 45. Nc3+ Ke6 46. Red1 (46. Rxe5+ Kxe5 47. Nxb5 Ke4 $11)) 44... Kc6 $11 {[%emt 0:00:05]} 45. Re6+ {[%emt 0:06:01]} Kc7 {[%emt 0:00:49]} 46. Ne2 {[%emt 0:04:48]} (46. g4 $5 Rg5 $8 47. Ra6 $11) 46... Rxh5 {[%emt 0:03:08]} 47. Rxd4 {[%emt 0:01:30]} Rxd4 {[%emt 0:00:08]} 48. Nxd4 {[%emt 0:00:03][%mdl 4096] Endgame KRB-KRN} Bf6 {[%emt 0:00:04]} 49. Ne2 {[%emt 0:01:27]} (49. Re4 $1 $15) 49... Re5 $1 $17 {[%emt 0:01:10]} 50. Rxe5 {[%emt 0:01:28]} Bxe5 {[%emt 0:00:00] KB-KN} 51. a4 {[%emt 0:00:25]} bxa4+ $1 {[%emt 0:00:31]} 52. Kxa4 {[%emt 0:00:02]} Kc6 {[%emt 0:00:52]} 53. Kb3 {[%emt 0:04:29]} Kd5 $1 {[%emt 0:00:17]} 54. Kc2 $2 {[%emt 0:00:07] [#]} (54. b5 $17) 54... Ke4 $1 $19 {[%emt 0:00:13]} 55. Kd2 {[%emt 0:00:13]} Kf3 {[%emt 0:00:05]} (55... Bc7 $19 {and Black stays clearly on top.} 56. g4 g5 57. Nc3+ Kf3) 56. b5 $2 {[%emt 0:00:04]} (56. Kd3 $17 {is the only way for White.}) 56... Bc7 $2 {[%emt 0:01:42]} (56... Bxg3 $2 57. Nxg3 g6 58. b6 Kxg3 59. b7 $18) (56... g5 $19 {[%cal Oe5c7] And now ...Bc7! would win.} 57. b6 h5 (57... Bxg3 $2 58. Nxg3 Kxg3 59. b7 $18)) 57. Ke1 $2 {[%emt 0:07:02][%mdl 8192]} (57. Nd4+ $11 {and White stays safe.} Kg4 (57... Kxg3 58. Nf5+ Kf3 59. Nxg7 $11) 58. Ke3) 57... h5 {[%emt 0:01:05]} (57... Bxg3+ $2 58. Nxg3 Kxg3 59. b6 $18) 58. Kf1 {[%emt 0:01:23] [#]} Ba5 $2 {[%emt 0:01:12]} (58... Bxg3 $2 {loses.} 59. Nxg3 Kxg3 60. b6 $18) (58... Bb6 $1 $19 59. Nc3 g5 (59... Kxg3 60. Nd5 $17)) 59. Nd4+ $11 {[%emt 0:00:23] The position is equal.} Kxg3 {[%emt 0:00:34]} 60. Nf5+ {[%emt 0:00:10]} Kf3 {[%emt 0:00:25]} 61. Nxg7 {[%emt 0:00:07]} h4 {[%emt 0:00:06]} 62. Kg1 {[%emt 0:00:07]} Ke4 {[%emt 0:00:25] Weighted Error Value: White=0.25 (precise) /Black=0.29 (precise)   Loses game:     	White=3     	---        Missed win:     	---       	Black=2      Mistake:       	White=2     	Black=2      Inaccurate:     	White=3     	---        OK:         	White=18    	Black=18     Best:        	White=3     	Black=1      Strong:       	White=2     	Black=4} 1/2-1/2

[Event "10th Menchik Memorial 2025"]
[Site "London"]
[Date "2025.03.23"]
[Round "8.2"]
[White "Van Foreest, Machteld"]
[Black "Unuk, Laura"]
[Result "0-1"]
[Annotator "TA"]
[ECO "C24"]
[WhiteElo "2352"]
[BlackElo "2301"]
[PlyCount "108"]
[EventDate "2025.03.11"]
[EventType "tourn"]
[EventCountry "ENG"]
[SourceTitle "playchess.com"]
[Source "ChessBase"]
[SourceQuality "1"]
[TimeControl "5400+30"]

{[%evp 12,108,75,66,62,36,47,19,27,18,19,22,18,37,41,21,31,31,29,37,25,31,31,22,-1,-42,-54,-66,-81,-62,-57,-67,0,0,-3,0,11,4,4,0,0,-21,0,-19,-19,-24,-20,-26,-21,-111,-87,-139,-131,-137,-141,-131,-135,-133,-130,-163,-155,-150,-150,-189,-171,-179,-179,-120,-122,-160,-110,-250,-264,-186,-186,-283,-277,-232,-119,-268,-241,-227,-212,-1155,-1144,-1302,-1170,-1233,-1001,-5102,-4416,-5522,-6111,-6103,-5995,-29977,-6103,-5439,-5435]} 1. e4 {[%emt 0:00:03]} e5 {[%emt 0:00:12]} 2. Nf3 {[%emt 0:00:11]} Nc6 {[%emt 0:00:05]} 3. Bc4 {[%emt 0:00:09]} Nf6 {[%emt 0:00:23]} 4. d3 {[%emt 0:00:08]} d5 {[%emt 0:00:07]} 5. exd5 {[%emt 0:00:56]} Nxd5 {[%emt 0:00:06]} 6. O-O {[%emt 0:06:01]} Be7 {[%emt 0:00:06]} 7. Re1 {[%emt 0:03:13]} f6 {[%emt 0:00:17] C24: Bishop's Opening: 2...Nf6.} 8. Nc3 {[%emt 0:17:01]} Be6 {[%emt 0:14:38]} 9. Ne4 {[%emt 0:28:24]} Qd7 $146 {[%emt 0:07:21] The position is equal.} ({Predecessor:} 9... Na5 10. Nxe5 fxe5 11. Qh5+ Bf7 12. Qxe5 O-O 13. Bxd5 Bxd5 14. Nc3 Bb4 15. Nxd5 Bxe1 {0-1 Audi,A (2391)-Pechac,J (2608) Piestany Slovakia op-A 2023 (9)}) 10. d4 {[%emt 0:03:57]} O-O-O {[%emt 0:11:56]} 11. dxe5 {[%emt 0:00:12]} Nxe5 {[%emt 0:12:48]} 12. Nxe5 {[%emt 0:00:11]} fxe5 {[%emt 0:00:03]} 13. Bg5 {[%emt 0:08:24]} Kb8 {[%emt 0:03:27]} 14. Bxe7 {[%emt 0:03:48]} Qxe7 {[%emt 0:00:27]} 15. Qh5 {[%emt 0:00:55]} Bc8 {[%emt 0:21:16]} 16. Bxd5 {[%emt 0:07:34]} Rxd5 {[%emt 0:00:04]} 17. Nc3 {[%emt 0:00:24]} Rd2 {[%emt 0:03:52]} 18. Rxe5 {[%emt 0:00:59]} Qb4 {[%emt 0:00:28]} 19. Rb5 {[%emt 0:10:08]} Qd4 {[%emt 0:01:52] Black is more active.} 20. Qf3 {[%emt 0:00:35] And now Rd5 would win.} Rxc2 {[%emt 0:00:45]} 21. Rd1 {[%emt 0:00:48]} Rd2 {[%emt 0:04:49] Black plays in the center} ({Better is} 21... Qf6 $15 22. Qxf6 gxf6) 22. Rd5 $11 {[%emt 0:00:36][%cal Bb5d5,Bd5d1,Bd1e1][%mdl 32]} Rxd1+ {[%emt 0:00:05]} 23. Qxd1 {[%emt 0:00:17]} Qxd1+ {[%emt 0:00:50]} 24. Rxd1 {[%emt 0:00:02][%mdl 4096] Endgame KRB-KRN} c6 {[%emt 0:01:32]} 25. Re1 {[%emt 0:01:01]} Rd8 {[%emt 0:00:22]} 26. f4 {[%emt 0:00:28]} b5 {[%emt 0:15:39]} 27. Re7 {[%emt 0:00:28]} Rd2 {[%emt 0:00:00]} 28. Re2 {[%emt 0:02:53]} Rxe2 {[%emt 0:00:00]} 29. Nxe2 {[%emt 0:00:02] KB-KN} Kc7 {[%emt 0:00:00]} 30. b4 {[%emt 0:02:03]} (30. Kf2 $11 {keeps the balance.}) 30... c5 {[%emt 0:00:00]} 31. a3 {[%emt 0:01:12]} (31. bxc5 $142 Kc6 32. f5) 31... Kc6 $17 {[%emt 0:00:00]} 32. Nc3 {[%emt 0:01:10] [#]} a5 $1 {[%emt 0:00:00][%mdl 512]} 33. bxa5 {[%emt 0:00:17] [#]} b4 $1 {[%emt 0:00:00]} 34. axb4 {[%emt 0:00:20]} cxb4 {[%emt 0:00:00]} 35. Nd1 {[%emt 0:02:01]} Kb5 {[%emt 0:00:00][%cal Oc8g4]} 36. Kf2 {[%emt 0:00:01]} Kxa5 {[%emt 0:00:00]} 37. Nb2 {[%emt 0:00:40]} b3 {[%emt 0:00:00]} 38. Ke3 {[%emt 0:00:01]} Kb4 {[%emt 0:00:00]} 39. Kd2 {[%emt 0:00:04]} Bf5 {[%emt 0:00:50]} 40. Nd1 {[%emt 0:00:22]} g6 {[%emt 0:00:24]} (40... Bc2 $142 41. Ne3 Be4) 41. g3 {[%emt 0:00:27] [#]} (41. Kc1 $17) 41... h5 $1 $19 {[%emt 0:00:58]} 42. Nb2 {[%emt 0:00:03]} Bc2 {[%emt 0:00:52]} 43. Kc1 {[%emt 0:01:16]} (43. h3 {is a better defense.}) 43... Kc3 {[%emt 0:00:55]} 44. Na4+ {[%emt 0:01:50]} Kd3 {[%emt 0:00:29]} (44... Kd4 $19 {Hoping for ...Ke3.} 45. Kd2 Ke4) 45. Nb6 {[%emt 0:00:45]} (45. f5 $17 gxf5 46. Nb6) 45... Ke3 {[%emt 0:05:02]} 46. Nc4+ {[%emt 0:00:15]} Kf2 {[%emt 0:00:00]} 47. Ne5 $2 {[%emt 0:00:01]} (47. Kd2) 47... Bf5 {[%emt 0:00:00]} 48. Nc6 {[%emt 0:01:20]} Kg2 {[%emt 0:00:00]} 49. Nd4 {[%emt 0:00:26]} Kxh2 {[%emt 0:00:05]} 50. Nxb3 {[%emt 0:00:22]} Kxg3 {[%emt 0:00:05][%cal Oh5h4]} 51. Kd1 {[%emt 0:00:07]} h4 {[%emt 0:00:07][%cal Oh4h3] ( -> ...h3!)} 52. Nd2 {[%emt 0:00:05]} h3 {[%emt 0:00:20]} 53. Ke2 {[%emt 0:00:04]} h2 {[%emt 0:00:39]} 54. Nf1+ {[%emt 0:00:05]} Kh3 {[%emt 0:00:11] Weighted Error Value: White=0.68/Black=0.09 (flawless)   Mistake:       	White=6     	Black=3      Inaccurate:     	White=4     	---        OK:         	White=11    	Black=18     Best:        	White=1     	Black=1      Strong:       	---       	Black=2} (54... Kxf4 55. Nxh2 Be4 56. Kf2 $15) 0-1

[Event "10th Menchik Memorial 2025"]
[Site "London"]
[Date "2025.03.23"]
[Round "8.3"]
[White "Navrotescu, Andreea"]
[Black "Schulze, Lara"]
[Result "1/2-1/2"]
[Annotator "TA"]
[ECO "D31"]
[WhiteElo "2288"]
[BlackElo "2313"]
[PlyCount "98"]
[EventDate "2025.03.11"]
[EventType "tourn"]
[EventCountry "ENG"]
[SourceTitle "playchess.com"]
[Source "ChessBase"]
[SourceQuality "1"]
[TimeControl "5400+30"]

{[%evp 9,98,21,13,20,21,23,23,20,29,22,25,25,24,27,21,12,17,-13,0,-18,-17,-8,-14,-14,4,4,35,35,38,26,30,36,41,-31,-53,-46,-45,-100,-27,-41,-22,-50,-47,-113,-114,-92,-94,-112,-86,-134,-129,-258,-102,-214,-232,-224,-222,-219,-24,-194,-203,-309,-313,-253,-129,-347,-351,-349,-335,-348,-327,-312,-290,-320,-312,-386,-383,-631,-552,-573,-547,-529,-492,-529,-215,-161,0,0,0,0,0]} 1. d4 {[%emt 0:00:02]} d5 {[%emt 0:00:01]} 2. c4 {[%emt 0:00:07]} e6 {[%emt 0:00:04]} 3. Nc3 {[%emt 0:00:04]} a6 {[%emt 0:00:05]} 4. cxd5 {[%emt 0:00:27]} exd5 {[%emt 0:00:08]} 5. Qb3 {[%emt 0:00:10]} c5 {[%emt 0:00:10]} 6. Qxd5 {[%emt 0:00:19] D31: Queen's Gambit Declined: Semi-Slav without ...Nf6 (+ Marshall Gambit and Noteboom) and Exchange Variation lines without ...Nf6.} cxd4 {[%emt 0:00:11]} 7. Qxd8+ {[%emt 0:00:19]} Kxd8 {[%emt 0:00:02]} 8. Nd5 {[%emt 0:00:35] White has an edge.} Be6 {[%emt 0:00:14]} 9. Nf4 {[%emt 0:04:48]} Bb4+ {[%emt 0:00:59]} 10. Bd2 {[%emt 0:00:46]} Bxd2+ {[%emt 0:00:09]} 11. Kxd2 {[%emt 0:00:03]} Nf6 {[%emt 0:06:37]} 12. Nf3 {[%emt 0:03:32]} Nc6 {[%emt 0:01:05]} 13. Ng5 $146 {[%emt 0:05:42]} (13. Nxe6+ fxe6 14. e3 Kc7 15. exd4 Rad8 16. Rc1 Kb6 17. Bd3 Nxd4 18. Ne5 Rhf8 19. Rc4 {0-1 Dreev,A (2623)-Tristan,L (2553) Titled Tuesday intern op 05th Apr Late blitz 2022 (6)}) 13... Ke7 {[%emt 0:05:08]} 14. g3 {[%emt 0:08:49]} Bf5 {[%emt 0:05:43]} 15. Bg2 {[%emt 0:03:00]} h6 {[%emt 0:03:07]} 16. Nf3 {[%emt 0:00:19]} Ne4+ {[%emt 0:10:22]} (16... Rhe8 17. Rhd1 Kf8 18. Nd3 Be4) 17. Ke1 {[%emt 0:00:27]} Rac8 {[%emt 0:13:23]} 18. Nh4 {[%emt 0:04:48]} Bh7 {[%emt 0:02:49] [#]} 19. Nhg6+ $1 {[%emt 0:01:21]} fxg6 {[%emt 0:11:10]} 20. Bxe4 {[%emt 0:00:10]} g5 {[%emt 0:00:08][%csl LRe4,LRf4]} 21. Ng6+ {[%emt 0:05:22]} (21. Bxh7 $1 $14 Rxh7 22. Nd3) 21... Kf6 $15 {[%emt 0:06:02]} (21... Kd6 {is interesting.} 22. h4 Rhe8 23. Bf5 d3) 22. Bxc6 {[%emt 0:00:08]} Bxg6 {[%emt 0:00:12]} 23. Ba4 {[%emt 0:18:39]} (23. Bxb7 $15 Rc2 24. Bxa6) 23... Bc2 {[%emt 0:04:13]} (23... d3 $17 24. h4 Rhd8 25. exd3 g4 (25... Rxd3 26. Rd1 $15)) 24. Bd7 $1 $11 {[%emt 0:01:54]} Rcd8 $36 {[%emt 0:04:12][%mdl 2048] Black fights for an advantage.} 25. Bg4 {[%emt 0:01:47]} Be4 {[%emt 0:02:09]} 26. Bf3 {[%emt 0:03:36]} (26. f3 $15 Bc6 27. h4) 26... Bxf3 $17 {[%emt 0:04:40]} 27. exf3 {[%emt 0:00:02][%mdl 4096] Endgame KRR-KRR} Rhf8 {[%emt 0:01:50]} 28. Rc1 {[%emt 0:23:50]} Rd7 {[%emt 0:12:37]} 29. Kf1 {[%emt 0:05:16]} (29. h4 $142) 29... Re8 {[%emt 0:05:18]} 30. Rc2 {[%emt 0:01:59]} (30. Rd1 $17 {was necessary.}) 30... Rde7 $2 {[%emt 0:00:16] [#]} (30... d3 $19 {has better winning chances.} 31. Rd2 Rc8) 31. Rd2 {[%emt 0:04:00]} (31. Kg2 $17) 31... Re1+ $19 {[%emt 0:00:48]} 32. Kg2 {[%emt 0:00:01]} Rxh1 {[%emt 0:00:54]} 33. Kxh1 {[%emt 0:00:02] KR-KR} Re1+ {[%emt 0:00:02]} 34. Kg2 {[%emt 0:00:06]} Ke5 {[%emt 0:00:04]} 35. h4 {[%emt 0:04:01]} (35. a3 $142) 35... gxh4 {[%emt 0:00:41]} 36. gxh4 {[%emt 0:00:01]} Kd5 {[%emt 0:00:22]} (36... b5 $19 37. b3 Kd5) 37. b3 $2 {[%emt 0:01:28]} (37. Rc2 $17) 37... Rc1 {[%emt 0:00:20]} 38. Kg3 {[%emt 0:00:17]} Rc6 {[%emt 0:02:31]} 39. Kg4 {[%emt 0:00:20]} Rg6+ {[%emt 0:00:33]} 40. Kf5 {[%emt 0:00:25]} Rf6+ {[%emt 0:00:09]} 41. Kg4 {[%emt 0:00:01]} a5 {[%emt 0:00:43][%cal Ba6a5,Ba5a4][%mdl 32]} 42. h5 {[%emt 0:01:46]} a4 {[%emt 0:00:06]} 43. Rd3 $2 {[%emt 0:00:36]} (43. bxa4 Rf7 44. a5 Kc4 45. Rc2+ Kb4 46. Rb2+ Kc3 (46... Kxa5 47. f4 $17)) (43. Kg3) 43... Rc6 {[%emt 0:00:23]} 44. Kf5 {[%emt 0:00:20]} Rc3 {[%emt 0:01:13]} 45. Rd2 {[%emt 0:00:01]} Rxf3+ {[%emt 0:00:33]} 46. Kg6 {[%emt 0:00:00]} Rh3 {[%emt 0:00:17]} (46... d3 $142 47. bxa4 Kc4) 47. bxa4 {[%emt 0:00:49][%cal Od2b2]} Kc4 $2 {[%emt 0:00:18]} (47... Rh2 $19 {Hoping for ...Rg2+.} 48. Rb2 d3) 48. Rc2+ $1 $11 {[%emt 0:00:11]} Rc3 {[%emt 0:00:29]} 49. Rb2 {[%emt 0:00:48]} ({Don't blunder} 49. Rxc3+ $2 dxc3 50. Kxg7 c2 51. Kxh6 c1=Q+ $19 (51... c1=R $2 52. Kg5 $19)) 49... d3 {[%emt 0:00:55] Weighted Error Value: White=0.32/Black=0.28 (precise)   Loses game:     	White=2     	---        Missed win:     	---       	Black=1      Mistake:       	White=8     	Black=4      Inaccurate:     	White=2     	Black=1      OK:         	White=6     	Black=18     Best:        	White=5     	Black=7      Strong:       	White=2     	---        Brilliant:      	White=1     	---} 1/2-1/2

[Event "10th Menchik Memorial 2025"]
[Site "London"]
[Date "2025.03.23"]
[Round "8.4"]
[White "Toma, Katarzyna"]
[Black "Hunt, Harriet V"]
[Result "1/2-1/2"]
[Annotator "TA"]
[ECO "B38"]
[WhiteElo "2177"]
[BlackElo "2296"]
[PlyCount "49"]
[EventDate "2025.03.11"]
[EventType "tourn"]
[EventCountry "ENG"]
[SourceTitle "playchess.com"]
[Source "ChessBase"]
[SourceQuality "1"]
[TimeControl "5400+30"]

{[%evp 21,49,58,73,70,73,36,64,64,54,54,47,60,59,48,66,42,93,79,86,26,79,37,93,50,55,0,76,0,30,0]} 1. e4 {[%emt 0:00:03]} c5 {[%emt 0:00:11]} 2. Nf3 {[%emt 0:00:12]} d6 {[%emt 0:00:13]} 3. d4 {[%emt 0:00:12]} cxd4 {[%emt 0:00:08]} 4. Nxd4 {[%emt 0:00:07]} Nf6 {[%emt 0:00:07]} 5. f3 {[%emt 0:00:19]} Nc6 {[%emt 0:01:54]} 6. c4 {[%emt 0:05:19]} g6 {[%emt 0:02:05]} 7. Be3 {[%emt 0:03:06]} Bg7 {[%emt 0:01:07]} 8. Qd2 {[%emt 0:00:19]} O-O {[%emt 0:02:01]} 9. Be2 {[%emt 0:00:45]} Bd7 {[%emt 0:02:58]} 10. O-O {[%emt 0:01:12]} a6 {[%emt 0:12:39][%cal Ba7a6,Ba6a5][%mdl 32]} 11. Nc3 {[%emt 0:01:29]} Rb8 {[%emt 0:01:55]} 12. Nb3 {[%emt 0:06:37][%cal Bd4b3,Bb3a1,Ba1c2][%mdl 32] White is more active. B38: Sicilian: Maroczy Bind with 5...Bg7 and 7...0-0.} Be6 {[%emt 0:14:41]} 13. Rac1 {[%emt 0:09:35]} Nd7 {[%emt 0:08:03]} 14. Nd5 {[%emt 0:04:10] White is slightly better.} a5 $146 {[%emt 0:06:38]} (14... Re8 15. Kh1 f5 16. exf5 Bxf5 17. Bh6 Bh8 18. g4 Be6 {1-0 Von Gleich,A (2214)-Balguzhinov,B (2155) FIDE World Rapid Team 2024 (3.37)}) 15. Na1 {[%emt 0:09:44]} Nc5 {[%emt 0:02:22]} 16. b3 {[%emt 0:01:06]} f5 {[%emt 0:06:12]} 17. exf5 {[%emt 0:01:16]} Bxf5 {[%emt 0:01:25]} 18. Nc2 {[%emt 0:01:35]} Rf7 {[%emt 0:05:28]} (18... Bxc2 $14 19. Qxc2 (19. Rxc2 b6 $16) 19... e6) 19. Rcd1 {[%emt 0:05:30]} b6 {[%emt 0:01:44]} 20. Rfe1 {[%emt 0:04:34]} (20. Na3 $16) 20... Qf8 {[%emt 0:01:50]} (20... Bxc2 $11 {remains equal.} 21. Qxc2 e6) 21. Bf1 {[%emt 0:01:10]} Bd7 {[%emt 0:00:37]} (21... e6 $14) 22. Rb1 {[%emt 0:04:54]} Bf5 {[%emt 0:02:26]} 23. Rbd1 {[%emt 0:03:38]} Bd7 $1 {[%emt 0:00:10]} 24. Rb1 {[%emt 0:10:09]} ({White should play} 24. Na3 $16) 24... Bf5 $1 $11 {[%emt 0:00:25]} 25. Rbd1 {[%emt 0:00:10] Weighted Error Value: White=0.26 (precise) /Black=0.16 (very precise)   Mistake:       	White=2     	Black=3      Inaccurate:     	White=4     	Black=1      OK:         	White=3     	Black=4      Best:        	White=1     	---        Strong:       	---       	Black=2} 1/2-1/2